fUSD/lending_fUSD_20240214
["ID","MTS","AMOUNT","RATE_DAILY","PERIOD"]
[314043348,1707945071901,-500.0,0.00037534,7]
[314043349,1707945071912,-7718.39,0.00037534,7]
[314043350,1707945071922,-500.0,0.00037534,7]
[314043351,1707945071933,-500.0,0.00037534,7]
[314043352,1707945071944,-500.0,0.00037534,7]
[314043353,1707945071958,-500.0,0.00037534,7]
[314043354,1707945071968,-500.0,0.00037534,7]
[314043355,1707945071978,-730.4,0.00037534,7]
[314043356,1707945071990,-1547.02,0.00037534,7]
[314043357,1707945072000,-1211.6,0.00037534,7]
[314043358,1707945072009,-349.07994158,0.00037534,7]
[314043359,1707945072019,-592.22,0.00037534,7]
[314043360,1707945072029,-1187.29,0.00037534,7]
[314043361,1707945072039,-6862.69,0.00037534,7]
[314043362,1707945072050,-500.0,0.00037534,7]
[314043363,1707945072060,-1752.35,0.00037534,7]
[314043364,1707945072070,-500.0,0.00037534,7]
[314043365,1707945072079,-565.71,0.00037534,7]
[314043366,1707945072089,-551.53,0.00037534,7]
[314043367,1707945072098,-500.0,0.00037534,7]
[314043368,1707945072107,-828.25,0.00037534,7]
[314043369,1707945072117,-500.0,0.00037534,7]
[314043370,1707945072126,-500.0,0.00037534,7]
[314043371,1707945072135,-865.42,0.00037534,7]
[314043372,1707945072145,-1003.79,0.00037534,7]
[314043373,1707945072154,-5366.99,0.00037534,7]
[314043374,1707945072164,-1623.54,0.00037534,7]
[314043375,1707945072173,-1200.22,0.00037534,7]
[314043376,1707945072183,-558.49,0.00037534,7]
[314043377,1707945072192,-500.0,0.00037534,7]
[314043378,1707945072202,-1014.56,0.00037534,7]
[314043379,1707945072211,-500.0,0.00037534,7]
[314043380,1707945072220,-995.34,0.00037534,7]
[314043381,1707945072230,-746.35,0.00037534,7]
[314043382,1707945072239,-501.11,0.00037534,7]
[314043383,1707945072248,-1044.44,0.00037534,7]
[314043384,1707945072257,-1716.87,0.00037534,7]
[314043385,1707945072267,-587.47,0.00037534,7]
[314043386,1707945072277,-1848.23,0.00037534,7]
[314043387,1707945072287,-1168.36,0.00037534,7]
[314043388,1707945072297,-500.0,0.00037534,7]
[314043389,1707945072306,-2233.44,0.00037534,7]
[314043390,1707945072316,-500.0,0.00037534,7]
[314043391,1707945072326,-243.46,0.00037534,7]
[314043392,1707945072336,-983.47,0.00037534,7]
[314043393,1707945072345,-580.91,0.00037534,7]
[314043394,1707945072354,-826.29,0.00037534,7]
[314043395,1707945072365,-250.0,0.00037534,7]
[314043396,1707945072374,-972.52,0.00037534,7]
[314043397,1707945072383,-898.19,0.00037534,7]
[314043398,1707945072393,-500.0,0.00037534,7]
[314043399,1707945072402,-500.0,0.00037534,7]
[314043400,1707945072412,-2032.9,0.00037534,7]
[314043401,1707945072422,-551.11787338,0.00037534,7]
[314043402,1707945072431,-224.56665283,0.00037534,7]
[314043403,1707945072440,-7693.98,0.00037534,7]
[314043404,1707945072449,-500.0,0.00037534,7]
[314043405,1707945072459,-500.0,0.00037534,7]
[314043406,1707945072468,-581.1437022,0.00037534,7]
[314043407,1707945072478,-647.49,0.00037534,7]
[314043408,1707945072487,-551.52,0.00037534,7]
[314043409,1707945072496,-778.33,0.00037534,7]
[314043410,1707945072506,-500.0,0.00037534,7]
[314043411,1707945072515,-500.0,0.00037534,7]
[314043412,1707945072524,-3552.29,0.00037534,7]
[314043413,1707945072534,-500.0,0.00037534,7]
[314043414,1707945072543,-3310.79,0.00037534,7]
[314043415,1707945072552,-630.27,0.00037534,7]
[314043416,1707945072562,-569.11,0.00037534,7]
[314043417,1707945072571,-1313.58,0.00037534,7]
[314043418,1707945072580,-500.0,0.00037534,7]
[314043419,1707945072590,-500.0,0.00037534,7]
[314043420,1707945072598,-500.0,0.00037534,7]
[314043421,1707945072608,-500.0,0.00037534,7]
[314043422,1707945072617,-150.0,0.00037542,2]
[314043423,1707945072626,-150.0,0.00037542,2]
[314043424,1707945072635,-151.02152,0.00037548,19]
[314043425,1707945072644,-1500.0,0.00037565,2]
[314043426,1707945072653,-877.93513764,0.00037569,2]
[314043427,1707945072662,-150.0,0.00037579,2]
[314043428,1707945072671,-170.0,0.0003758,45]
[314043429,1707945072680,-150.0,0.0003758,2]
[314043430,1707945072690,-300.0,0.00037581,2]
[314043431,1707945072701,-800.0,0.00037593,5]
[314043432,1707945072711,-200.0,0.00037593,10]
[314043433,1707945072721,-500.0,0.00037593,10]
[314043434,1707945072731,-405.27,0.000376,3]
[314043435,1707945072740,-405.27,0.000376,3]
[314043436,1707945072751,-405.27,0.000376,3]
[314043437,1707945072761,-405.27,0.000376,3]
[314043438,1707945072772,-405.27,0.000376,3]
[314043439,1707945072781,-405.27,0.000376,3]
[314043440,1707945072790,-405.27,0.000376,3]
[314043441,1707945072800,-405.27,0.000376,3]
[314043442,1707945072810,-405.27,0.000376,3]
[314043443,1707945072820,-405.27,0.000376,3]
[314043444,1707945072830,-405.27,0.000376,3]
[314043445,1707945072839,-405.27,0.000376,3]
[314043446,1707945072847,-405.27,0.000376,3]
[314043447,1707945072857,-405.27,0.000376,3]
[314043448,1707945072867,-405.27,0.000376,3]
[314043449,1707945072877,-405.27,0.000376,3]
[314043450,1707945072886,-405.27,0.000376,3]
[314043451,1707945072897,-405.27,0.000376,3]
[314043452,1707945072908,-405.27,0.000376,3]
[314043453,1707945072918,-405.27,0.000376,3]
[314043454,1707945072927,-150.0,0.00037602,2]
[314043455,1707945072937,-255.70778611,0.00037613,2]
[314043456,1707945072949,-255.70778611,0.00037613,2]
[314043457,1707945072961,-255.70778611,0.00037613,2]
[314043458,1707945072971,-152.87813406,0.0003762,2]
[314043459,1707945072982,-222.021519,0.00037648,19]
[314043460,1707945072994,-150.0,0.00037663,2]
[314043461,1707945073004,-1500.0,0.00037693,2]
[314043462,1707945073014,-200.0,0.00037695,2]
[314043463,1707945073025,-200.0,0.00037695,3]
[314043464,1707945073035,-800.0,0.00037695,5]
[314043465,1707945073046,-500.0,0.00037695,10]
[314043466,1707945073056,-150.0,0.00037695,2]
[314043467,1707945073066,-150.0,0.00037696,2]
[314043468,1707945073077,-1000.0,0.000377,7]
[314043469,1707945073090,-6879.71003742,0.00037701,2]
[314043470,1707945073100,-150.0,0.00037712,2]
[314043471,1707945073110,-1500.0,0.00037721,2]
[314043472,1707945073119,-150.0,0.00037723,2]
[314043473,1707945073128,-150.0,0.00037724,2]
[314043474,1707945073138,-150.0,0.00037744,2]
[314043475,1707945073148,-151.021518,0.00037748,18]
[314043476,1707945073158,-151.02152,0.00037748,19]
[314043477,1707945073168,-150.0,0.00037763,2]
[314043478,1707945073177,-150.0,0.00037765,2]
[314043479,1707945073188,-1500.0,0.00037771,2]
[314043480,1707945073198,-150.0,0.00037785,2]
[314043481,1707945073208,-150.0,0.00037785,2]
[314043482,1707945073218,-17593.4815284,0.00037786,2]
[314043483,1707945073228,-1662.1699864,0.00037786,2]
[314043484,1707945073238,-87987.6570546,0.00037786,2]
[314043485,1707945073248,-18207.0629029,0.00037792,2]
[314043486,1707945073259,-7878.67,0.000378,2]
[314043487,1707945073269,-155.0,0.000378,7]
[314043488,1707945073280,-556.75,0.00037808,7]
[314043489,1707945073290,-586.75,0.00037808,7]
[314043490,1707945073300,-799.09,0.00037808,7]
[314043491,1707945073310,-500.0,0.00037808,7]
[314043492,1707945073320,-500.0,0.00037808,7]
[314043493,1707945073329,-899.57,0.00037808,7]
[314043494,1707945073339,-2544.37,0.00037808,7]
[314043495,1707945073349,-647.67,0.00037808,7]
[314043496,1707945073360,-500.0,0.00037808,7]
[314043497,1707945073371,-500.0,0.00037808,7]
[314043498,1707945073380,-558.18,0.00037808,7]
[314043499,1707945073390,-500.0,0.00037808,7]
[314043500,1707945073400,-694.58,0.00037808,7]
[314043501,1707945073410,-500.0,0.00037808,7]
[314043502,1707945073420,-1144.53,0.00037808,7]
[314043503,1707945073430,-500.0,0.00037808,7]
[314043504,1707945073439,-500.0,0.00037808,7]
[314043505,1707945073449,-500.0,0.00037808,7]
[314043506,1707945073459,-500.0,0.00037808,7]
[314043507,1707945073470,-500.0,0.00037808,7]
[314043508,1707945073480,-3424.69,0.00037808,7]
[314043509,1707945073491,-818.43,0.00037808,7]
[314043510,1707945073501,-5392.04,0.00037808,7]
[314043511,1707945073513,-503.92,0.00037808,7]
[314043512,1707945073523,-906.19,0.00037808,7]
[314043513,1707945073533,-549.23,0.00037808,7]
[314043514,1707945073544,-500.0,0.00037808,7]
[314043515,1707945073555,-500.0,0.00037808,7]
[314043516,1707945073565,-822.06,0.00037808,7]
[314043517,1707945073574,-500.0,0.00037808,7]
[314043518,1707945073586,-3341.45,0.00037808,7]
[314043519,1707945073597,-500.0,0.00037808,7]
[314043520,1707945073607,-677.12,0.00037808,7]
[314043521,1707945073620,-500.0,0.00037808,7]
[314043522,1707945073629,-1761.82,0.00037808,7]
[314043523,1707945073639,-609.74,0.00037808,7]
[314043524,1707945073649,-802.92,0.00037808,7]
[314043525,1707945073658,-500.0,0.00037808,7]
[314043526,1707945073667,-500.0,0.00037808,7]
[314043527,1707945073677,-13582.07,0.00037808,7]
[314043528,1707945073687,-500.0,0.00037808,7]
[314043529,1707945073696,-500.0,0.00037808,7]
[314043530,1707945073705,-953.89,0.00037808,7]
[314043531,1707945073714,-500.0,0.00037808,7]
[314043532,1707945073724,-500.0,0.00037808,7]
[314043533,1707945073733,-6234.22,0.00037808,7]
[314043534,1707945073743,-586.78,0.00037808,7]
[314043535,1707945073753,-500.0,0.00037808,7]
[314043536,1707945073763,-1606.08,0.00037808,7]
[314043537,1707945073773,-500.0,0.00037808,7]
[314043538,1707945073782,-595.12,0.00037808,7]
[314043539,1707945073791,-500.0,0.00037808,7]
[314043540,1707945073800,-1047.58,0.00037808,7]
[314043541,1707945073811,-681.83,0.00037808,7]
[314043542,1707945073820,-515.63,0.00037808,7]
[314043543,1707945073832,-500.0,0.00037808,7]
[314043544,1707945073842,-1810.87,0.00037808,7]
[314043545,1707945073851,-805.31,0.00037808,7]
[314043546,1707945073861,-603.11,0.00037808,7]
[314043547,1707945073871,-500.0,0.00037808,7]
[314043548,1707945073881,-500.0,0.00037808,7]
[314043549,1707945073890,-500.0,0.00037808,7]
[314043550,1707945073901,-513.07,0.00037808,7]
[314043551,1707945073912,-500.0,0.00037808,7]
[314043552,1707945073921,-500.0,0.00037808,7]
[314043553,1707945073933,-500.0,0.00037808,7]
[314043554,1707945073943,-2047.91,0.00037808,7]
[314043555,1707945073956,-841.02,0.00037808,7]
[314043556,1707945073967,-780.8,0.00037808,7]
[314043557,1707945073977,-662.19,0.00037808,7]
[314043558,1707945073989,-1486.64,0.00037808,7]
[314043559,1707945073999,-2858.66,0.00037808,7]
[314043560,1707945074008,-500.0,0.00037808,7]
[314043561,1707945074020,-590.33,0.00037808,7]
[314043562,1707945074033,-786.93,0.00037808,7]
[314043563,1707945074043,-500.0,0.00037808,7]
[314043564,1707945074054,-577.68,0.00037808,7]
[314043565,1707945074065,-3628.12,0.00037808,7]
[314043566,1707945074074,-4757.12,0.00037808,7]
[314043567,1707945074084,-598.4,0.00037808,7]
[314043568,1707945074095,-1991.03,0.00037808,7]
[314043569,1707945074106,-612.33,0.00037808,2]
[314043570,1707945074117,-500.0,0.00037808,7]
[314043571,1707945074127,-500.0,0.00037808,7]
[314043572,1707945074139,-617.82,0.00037808,7]
[314043573,1707945074149,-502.43,0.00037808,7]
[314043574,1707945074160,-2139.36,0.00037808,7]
[314043575,1707945074170,-807.41,0.00037808,7]
[314043576,1707945074180,-685.44,0.00037808,7]
[314043577,1707945074190,-500.0,0.00037808,7]
[314043578,1707945074199,-500.0,0.00037808,7]
[314043579,1707945074209,-730.2,0.00037808,7]
[314043580,1707945074219,-2211.07,0.00037808,7]
[314043581,1707945074228,-500.0,0.00037808,7]
[314043582,1707945074238,-711.33,0.00037808,7]
[314043583,1707945074247,-743.99,0.00037808,7]
[314043584,1707945074259,-2294.91,0.00037808,7]
[314043585,1707945074269,-2043.37,0.00037808,7]
[314043586,1707945074278,-500.0,0.00037808,7]
[314043587,1707945074288,-594.55,0.00037808,7]
[314043588,1707945074298,-6637.56,0.00037808,7]
[314043589,1707945074308,-419.3,0.00037808,7]
[314043590,1707945074319,-500.0,0.00037808,7]
[314043591,1707945074331,-500.0,0.00037808,7]
[314043592,1707945074342,-500.0,0.00037808,7]
[314043593,1707945074351,-1343.45,0.00037808,7]
[314043594,1707945074362,-1215.55,0.00037808,7]
[314043595,1707945074371,-595.97,0.00037808,7]
[314043596,1707945074381,-500.0,0.00037808,7]
[314043597,1707945074390,-1831.02,0.00037808,7]
[314043598,1707945074399,-1575.34,0.00037808,7]
[314043599,1707945074409,-1240.3,0.00037808,7]
[314043600,1707945074418,-1949.84,0.00037808,7]
[314043601,1707945074428,-535.36,0.00037808,7]
[314043602,1707945074440,-500.0,0.00037808,7]
[314043603,1707945074451,-500.0,0.00037808,7]
[314043604,1707945074460,-500.0,0.00037808,7]
[314043605,1707945074469,-1376.91,0.00037808,7]
[314043606,1707945074478,-1838.93,0.00037808,7]
[314043607,1707945074489,-1020.07,0.00037808,7]
[314043608,1707945074501,-500.0,0.00037808,7]
[314043609,1707945074664,-500.0,0.00037808,7]
[314043610,1707945074675,-500.0,0.00037808,7]
[314043611,1707945074685,-1264.88,0.00037808,7]
[314043612,1707945074695,-4521.24,0.00037808,7]
[314043613,1707945074705,-791.66,0.00037808,7]
[314043614,1707945074713,-4808.1,0.00037808,7]
[314043615,1707945074723,-500.0,0.00037808,7]
[314043616,1707945074732,-500.0,0.00037808,7]
[314043617,1707945074741,-1751.89,0.00037808,7]
[314043618,1707945074751,-660.03,0.00037808,7]
[314043619,1707945074760,-500.0,0.00037808,7]
[314043620,1707945074769,-665.94,0.00037808,7]
[314043621,1707945074779,-1411.1,0.00037808,7]
[314043622,1707945074788,-720.52,0.00037808,7]
[314043623,1707945074798,-1028.68,0.00037808,7]
[314043624,1707945074807,-1101.95,0.00037808,7]
[314043625,1707945074817,-633.08,0.00037808,7]
[314043626,1707945074827,-679.4,0.00037808,7]
[314043627,1707945074838,-1588.43,0.00037808,7]
[314043628,1707945074848,-859.31,0.00037808,7]
[314043629,1707945074858,-570.05,0.00037808,7]
[314043630,1707945074871,-2455.03,0.00037808,7]
[314043631,1707945074882,-500.0,0.00037808,7]
[314043632,1707945074891,-500.0,0.00037808,7]
[314043633,1707945074901,-500.0,0.00037808,7]
[314043634,1707945074911,-6828.37,0.00037808,7]
[314043635,1707945074921,-7718.39,0.00037808,7]
[314043636,1707945074931,-500.0,0.00037808,7]
[314043637,1707945074941,-500.0,0.00037808,7]
[314043638,1707945074955,-500.0,0.00037808,7]
[314043639,1707945074965,-500.0,0.00037808,7]
[314043640,1707945074974,-592.19680931,0.00037808,7]
[314043641,1707945074984,-730.4,0.00037808,7]
[314043642,1707945074994,-1547.02,0.00037808,7]
[314043643,1707945075003,-1211.6,0.00037808,7]
[314043644,1707945075013,-592.22,0.00037808,7]
[314043645,1707945075022,-1187.29,0.00037808,7]
[314043646,1707945075034,-6862.69,0.00037808,7]
[314043647,1707945075044,-500.0,0.00037808,7]
[314043648,1707945075054,-1752.35,0.00037808,7]
[314043649,1707945075064,-500.0,0.00037808,7]
[314043650,1707945075073,-565.71,0.00037808,7]
[314043651,1707945075082,-551.53,0.00037808,7]
[314043652,1707945075091,-500.0,0.00037808,7]
[314043653,1707945075100,-828.25,0.00037808,7]
[314043654,1707945075110,-500.0,0.00037808,7]
[314043655,1707945075122,-500.0,0.00037808,7]
[314043656,1707945075132,-865.42,0.00037808,7]
[314043657,1707945075142,-5366.99,0.00037808,7]
[314043658,1707945075151,-1003.79,0.00037808,7]
[314043659,1707945075160,-1623.54,0.00037808,7]
[314043660,1707945075170,-1200.22,0.00037808,7]
[314043661,1707945075179,-558.49,0.00037808,7]
[314043662,1707945075189,-500.0,0.00037808,7]
[314043663,1707945075207,-1014.56,0.00037808,7]
[314043664,1707945075220,-613.94395555,0.00037808,7]
[314043665,1707945075230,-995.34,0.00037808,7]
[314043666,1707945075239,-746.35,0.00037808,7]
[314043667,1707945075249,-501.11,0.00037808,7]
[314043668,1707945075259,-1044.44,0.00037808,7]
[314043669,1707945075269,-1716.87,0.00037808,7]
[314043670,1707945075280,-1848.23,0.00037808,7]
[314043671,1707945075290,-587.47,0.00037808,7]
[314043672,1707945075300,-1168.36,0.00037808,7]
[314043673,1707945075310,-272.48,0.00037808,7]
[314043674,1707945075320,-2233.44,0.00037808,7]
[314043675,1707945075330,-500.0,0.00037808,7]
[314043676,1707945075340,-983.47,0.00037808,7]
[314043677,1707945075350,-580.91,0.00037808,7]
[314043678,1707945075359,-826.29,0.00037808,7]
[314043679,1707945075374,-250.0,0.00037808,7]
[314043680,1707945075384,-972.52,0.00037808,7]
[314043681,1707945075394,-898.19,0.00037808,7]
[314043682,1707945075404,-500.0,0.00037808,7]
[314043683,1707945075414,-500.0,0.00037808,7]
[314043684,1707945075425,-2032.9,0.00037808,7]
[314043685,1707945075438,-7693.98,0.00037808,7]
[314043686,1707945075448,-500.0,0.00037808,7]
[314043687,1707945075457,-500.0,0.00037808,7]
[314043688,1707945075467,-647.49,0.00037808,7]
[314043689,1707945075477,-551.52,0.00037808,7]
[314043690,1707945075486,-778.33,0.00037808,7]
[314043691,1707945075496,-500.0,0.00037808,7]
[314043692,1707945075506,-500.0,0.00037808,7]
[314043693,1707945075516,-3552.29,0.00037808,7]
[314043694,1707945075526,-500.0,0.00037808,7]
[314043695,1707945075535,-630.27,0.00037808,7]
[314043696,1707945075545,-3310.79,0.00037808,7]
[314043697,1707945075554,-569.11,0.00037808,7]
[314043698,1707945075564,-1313.58,0.00037808,7]
[314043699,1707945075573,-500.0,0.00037808,7]
[314043700,1707945075583,-160.78,0.00037808,7]
[314043701,1707945075592,-500.0,0.00037808,7]
[314043702,1707945075602,-500.0,0.00037808,7]
[314043703,1707945075613,-158.3,0.00037808,2]
[314043704,1707945075623,-1000.0,0.0003781,2]
[314043705,1707945075633,-672.6403,0.0003781,2]
[314043706,1707945075643,-500.0,0.0003781,2]
[314043707,1707945075652,-455.416,0.0003781,2]
[314043708,1707945075663,-150.0,0.00037814,2]
[314043709,1707945075672,-150.0,0.00037815,2]
[314043710,1707945075682,-300.0,0.00037833,2]
[314043711,1707945075691,-150.0,0.00037839,2]
[314043712,1707945075701,-204.78940017,0.00037841,2]
[314043713,1707945075710,-333.02152,0.00037848,19]
[314043714,1707945075720,-347.36,0.00037848,2]
[314043715,1707945075730,-300.0,0.00037861,2]
[314043716,1707945075739,-150.0,0.00037871,2]
[314043717,1707945075750,-16531.1208506,0.00037874,2]
[314043718,1707945075759,-2160.8791612,0.00037874,2]
[314043719,1707945075769,-23498.1762106,0.00037874,2]
[314043720,1707945075778,-153.54697604,0.00037898,2]
[314043721,1707945075788,-150.0,0.00037899,2]
[314043722,1707945075797,-197.00691101,0.00037899,2]
[314043723,1707945075807,-150.0,0.00037899,2]
[314043724,1707945075817,-150.0,0.00037899,2]
[314043725,1707945075826,-33242.938273,0.000379,2]
[314043726,1707945075836,-179.558672,0.000379,2]
[314043727,1707945075846,-638929.602783,0.000379,3]
[314043728,1707945075856,-300.0,0.00037917,2]
[314043729,1707945075868,-1000.0,0.00037918,10]
[314043730,1707945075878,-651.282159,0.00037922,2]
[314043731,1707945075888,-173.3161,0.00037922,2]
[314043732,1707945075898,-816.874501,0.00037922,2]
[314043733,1707945075908,-677.786138,0.00037922,2]
[314043734,1707945075919,-171.949039,0.00037922,2]
[314043735,1707945075929,-171.423601,0.00037922,2]
[314043736,1707945075938,-2281.099806,0.00037922,2]
[314043737,1707945075949,-285.499401,0.00037922,2]
[314043738,1707945075960,-174.296267,0.00037922,2]
[314043739,1707945075970,-152.747184,0.00037922,2]
[314043740,1707945075979,-163.279655,0.00037922,2]
[314043741,1707945075989,-173.419976,0.00037922,2]
[314043742,1707945075999,-2281.099807,0.00037922,2]
[314043743,1707945076008,-285.499402,0.00037922,2]
[314043744,1707945076018,-152.216948,0.00037922,2]
[314043745,1707945076030,-2281.099806,0.00037922,2]
[314043746,1707945076041,-285.499401,0.00037922,2]
[314043747,1707945076051,-152.747184,0.00037922,2]
[314043748,1707945076062,-2281.099806,0.00037922,2]
[314043749,1707945076072,-285.499401,0.00037922,2]
[314043750,1707945076081,-150.0,0.00037923,2]
[314043751,1707945076090,-151.021518,0.00037948,18]
[314043752,1707945076100,-151.02152,0.00037948,19]
[314043753,1707945076110,-333.021518,0.00037948,18]
[314043754,1707945076121,-150.0,0.0003795,2]
[314043755,1707945076130,-150.0,0.00037956,2]
[314043756,1707945076139,-150.0,0.00037962,2]
[314043757,1707945076148,-150.0,0.00037965,2]
[314043758,1707945076157,-150.0,0.00037969,2]
[314043759,1707945076167,-15468.7601728,0.00037973,2]
[314043760,1707945076177,-2659.588336,0.00037974,2]
[314043761,1707945076186,-28789.2895183,0.00037974,2]
[314043762,1707945076195,-200.0,0.00037987,3]
[314043763,1707945076205,-200.0,0.00037987,2]
[314043764,1707945076214,-150.0,0.00037998,2]
[314043765,1707945076223,-150.01,0.00037999,2]
[314043766,1707945076233,-51599.26350509,0.00037999,2]
[314043767,1707945076243,-3315.42078673,0.00037999,2]
[314043768,1707945076253,-100000.0,0.00038,18]
[314043769,1707945076263,-149364.17422389,0.00038,2]
[314043770,1707945076273,-411.2242063,0.00038,9]
[314043771,1707945076283,-947.15,0.00038,7]
[314043772,1707945076292,-14828.43018801,0.00038,4]
[314043773,1707945076302,-296.56860376,0.00038,4]
[314043774,1707945076311,-277259.19174535,0.00038,5]
[314043775,1707945076321,-200.0,0.00038,12]
[314043776,1707945076331,-3000.0,0.00038,33]
[314043777,1707945076340,-1879.239029,0.00038,7]
[314043778,1707945076350,-1000.0,0.00038,7]
[314043779,1707945076359,-12586.99999901,0.00038,2]
[314043780,1707945076370,-305.23849,0.00038,12]
[314043781,1707945076382,-200.0,0.00038,2]
[314043782,1707945076394,-5013.1,0.00038,2]
[314043783,1707945076404,-307.54,0.00038,2]
[314043784,1707945076415,-1282.5827,0.00038,2]
[314043785,1707945076427,-3000.0,0.0003801,34]
[314043786,1707945076438,-166.13,0.00038012,2]
[314043787,1707945076447,-5477.23002,0.0003802,34]
[314043788,1707945076456,-347.36,0.00038041,2]
[314043789,1707945076466,-151.02152,0.00038048,19]
[314043790,1707945076475,-151.02152,0.00038048,19]
[314043791,1707945076484,-333.021519,0.00038048,19]
[314043792,1707945076494,-8639.22174616,0.00038048,2]
[314043793,1707945076503,-14708.6199318,0.00038056,2]
[314043794,1707945076513,-162101.4307707,0.00038056,2]
[314043795,1707945076522,-1000.0,0.00038067,2]
[314043796,1707945076531,-164.47672371,0.0003807,7]
[314043797,1707945076540,-5075.24458727,0.00038082,2]
[314043798,1707945076550,-556.75,0.00038082,7]
[314043799,1707945076559,-586.75,0.00038082,7]
[314043800,1707945076568,-799.09,0.00038082,7]
[314043801,1707945076577,-500.0,0.00038082,7]
[314043802,1707945076587,-500.0,0.00038082,7]
[314043803,1707945076596,-899.57,0.00038082,7]
[314043804,1707945076606,-2544.37,0.00038082,7]
[314043805,1707945076616,-647.67,0.00038082,7]
[314043806,1707945076625,-500.0,0.00038082,7]
[314043807,1707945076634,-500.0,0.00038082,7]
[314043808,1707945076643,-558.18,0.00038082,7]
[314043809,1707945076653,-500.0,0.00038082,7]
[314043810,1707945076662,-694.58,0.00038082,7]
[314043811,1707945076671,-500.0,0.00038082,7]
[314043812,1707945076681,-1144.53,0.00038082,7]
[314043813,1707945076690,-500.0,0.00038082,7]
[314043814,1707945076700,-500.0,0.00038082,7]
[314043815,1707945076709,-500.0,0.00038082,7]
[314043816,1707945076718,-500.0,0.00038082,7]
[314043817,1707945076727,-500.0,0.00038082,7]
[314043818,1707945076737,-3424.69,0.00038082,7]
[314043819,1707945076746,-818.43,0.00038082,7]
[314043820,1707945076755,-5392.04,0.00038082,7]
[314043821,1707945076764,-503.92,0.00038082,7]
[314043822,1707945076774,-906.19,0.00038082,7]
[314043823,1707945076783,-549.23,0.00038082,7]
[314043824,1707945076792,-500.0,0.00038082,7]
[314043825,1707945076802,-500.0,0.00038082,7]
[314043826,1707945076812,-822.06,0.00038082,7]
[314043827,1707945076823,-500.0,0.00038082,7]
[314043828,1707945076833,-500.0,0.00038082,7]
[314043829,1707945076842,-3341.45,0.00038082,7]
[314043830,1707945076853,-677.12,0.00038082,7]
[314043831,1707945076864,-500.0,0.00038082,7]
[314043832,1707945076873,-1761.82,0.00038082,7]
[314043833,1707945076883,-609.74,0.00038082,7]
[314043834,1707945076893,-802.92,0.00038082,7]
[314043835,1707945076904,-500.0,0.00038082,7]
[314043836,1707945076915,-500.0,0.00038082,7]
[314043837,1707945076926,-13582.07,0.00038082,7]
[314043838,1707945076936,-500.0,0.00038082,7]
[314043839,1707945076947,-500.0,0.00038082,7]
[314043840,1707945076959,-953.89,0.00038082,7]
[314043841,1707945076968,-500.0,0.00038082,7]
[314043842,1707945076977,-500.0,0.00038082,7]
[314043843,1707945076987,-6234.22,0.00038082,7]
[314043844,1707945076998,-586.78,0.00038082,7]
[314043845,1707945077010,-500.0,0.00038082,7]
[314043846,1707945077020,-1606.08,0.00038082,7]
[314043847,1707945077033,-595.12,0.00038082,7]